fUST/lending_fUST_20240809
["ID","MTS","AMOUNT","RATE_DAILY","PERIOD"]
[334533506,1723175353235,-166.08225743,0.00015184,2]
[334533507,1723175353645,849.90944882,0.00014545,2]
[334533508,1723175353958,160.25653991,9.999e-05,2]
[334533512,1723175355363,543.3913977,9.999e-05,2]
[334533513,1723175356683,348.9184757,0.00015,4]
[334533514,1723175359488,1109.52360725,0.00015,2]
[334533515,1723175362383,156.69756504,0.00012,2]
[334533516,1723175365025,244.97937896,9.999e-05,2]
[334533517,1723175365165,189.86108484,0.00012,2]
[334533518,1723175366718,273.37336231,9.9e-05,2]
[334533519,1723175369141,534.23635652,0.00012,2]
[334533520,1723175369545,197.2916319,9.999e-05,2]
[334533521,1723175370620,952.35719277,0.00015,2]
[334533522,1723175371401,165.64084866,0.00012,2]
[334533523,1723175373911,492.72901981,0.00015,2]
[334533524,1723175374906,155.31754443,9.999e-05,2]
[334533525,1723175375860,154.79103211,9.999e-05,2]
[334533526,1723175377073,694.52815247,9.999e-05,2]
[334533527,1723175381954,5238.43426144,0.00015,2]
[334533528,1723175382019,154.79103211,0.00012,2]
[334533529,1723175382544,273.37336231,9.9e-05,2]
[334533530,1723175383188,156.91765496,0.00012,2]
[334533531,1723175384902,845.99366792,9.999e-05,2]
[334533532,1723175384934,154.79103211,9.999e-05,2]
[334533533,1723175389182,156.28070463,0.00012,2]
[334533534,1723175392982,154.79103211,0.00014999,2]
[334533535,1723175395106,180.58289429,9.999e-05,2]
[334533536,1723175395334,1109.52360725,0.00015,2]
[334533537,1723175397610,568.89588544,0.00012,2]
[334533538,1723175397814,273.37336231,9.9e-05,2]
[334533539,1723175399565,160.25653991,0.00012,2]
[334533540,1723175403154,16297.03267387,0.00012,2]
[334533541,1723175405374,543.3913977,0.00012,2]
[334533542,1723175407411,156.69756504,0.00012,2]
[334533543,1723175410534,244.97937896,0.00012,2]
[334533544,1723175411409,165.64084866,0.00012,2]
[334533545,1723175413659,849.90944882,0.00012,2]
[334533546,1723175414321,273.37336231,9.9e-05,2]
[334533547,1723175416230,952.35719277,0.00015,2]
[334533548,1723175416794,664.6584772,9.999e-05,2]
[334533549,1723175419350,154.79103211,0.00012,2]
[334533550,1723175425149,154.79103211,0.00014999,2]
[334533551,1723175425270,816.72532423,0.0001,2]
[334533552,1723175425410,156.91765496,0.00014545,2]
[334533553,1723175425755,201.56239801,9.999e-05,2]
[334533554,1723175425792,189.86108484,0.00014545,2]
[334533555,1723175426560,154.79103211,9.999e-05,2]
[334533556,1723175426610,534.23635652,0.00012,2]
[334533557,1723175427792,664.6584772,9.999e-05,2]
[334533558,1723175430399,483.08758026,0.00014545,2]
[334533559,1723175431074,273.37336231,9.9e-05,2]
[334533670,1723175433267,-83.91774257,0.00015184,2]
[334533671,1723175433277,-250.0,0.00015225,2]
[334533672,1723175433286,-102.41748639,0.00015266,2]
[334533673,1723175433298,-147.58251361,0.00015266,2]
[334533674,1723175433308,-250.0,0.00015306,2]
[334533675,1723175433318,-29.39964214,0.00015347,2]
[334533676,1723175434805,694.52815247,0.00014545,2]
[334533677,1723175435191,154.79103211,0.00014545,2]
[334533678,1723175435787,810.44375008,9.999e-05,2]
[334533679,1723175436608,519.94052242,9.999e-05,2]
[334533680,1723175437398,154.79103211,0.00014545,2]
[334533681,1723175437904,492.72901981,0.00015,2]
[334533682,1723175437964,154.79103211,9.999e-05,2]
[334533732,1723175440695,-220.60035786,0.00015347,2]
[334533733,1723175440705,-250.0,0.00015388,2]
[334533734,1723175440714,-250.0,0.00015428,2]
[334533735,1723175440724,-250.0,0.00015469,2]
[334533736,1723175440733,-250.0,0.0001551,2]
[334533737,1723175440742,-250.0,0.0001555,2]
[334533738,1723175440752,-12019.37325438,0.00015579,2]
[334533739,1723175440761,-250.0,0.00015591,2]
[334533740,1723175440771,-534.7659562,0.000156,2]
[334533741,1723175440780,-300.0,0.00015607,2]
[334533742,1723175440789,-300.0,0.00015607,2]
[334533743,1723175440799,-16480.84442392,0.00015608,2]
[334533744,1723175440808,-16480.8444239,0.00015643,2]
[334533745,1723175440817,-500.0,0.00015678,2]
[334533746,1723175440826,-500.0,0.00015678,2]
[334533747,1723175440838,-500.0,0.00015678,2]
[334533748,1723175440847,-500.0,0.00015678,2]
[334533749,1723175440856,-500.0,0.00015678,2]
[334533750,1723175440865,-500.0,0.00015678,2]
[334533751,1723175440875,-500.0,0.00015678,2]
[334533752,1723175440885,-500.0,0.00015678,2]
[334533753,1723175440894,-154.22221795,0.00015678,2]
[334533754,1723175440903,-500.0,0.00015678,2]
[334533755,1723175440913,-500.0,0.00015678,2]
[334533756,1723175440922,-500.0,0.00015678,2]
[334533757,1723175440932,-500.0,0.00015678,2]
[334533758,1723175440943,-395.10359517,0.00015678,2]
[334533759,1723175440953,-500.0,0.00015678,2]
[334533760,1723175440963,-500.0,0.00015678,2]
[334533761,1723175440972,-500.0,0.00015678,2]
[334533762,1723175440981,-500.0,0.00015678,2]
[334533763,1723175440991,-411.78646863,0.00015678,2]
[334533764,1723175441000,-500.0,0.00015678,2]
[334533765,1723175441009,-500.0,0.00015678,2]
[334533766,1723175441018,-500.0,0.00015678,2]
[334533767,1723175441028,-642.76113531,0.00015678,2]
[334533768,1723175441037,-300.0,0.00015678,2]
[334533769,1723175441046,-500.0,0.00015678,2]
[334533770,1723175441056,-500.0,0.00015678,2]
[334533771,1723175441066,-500.0,0.00015678,2]
[334533772,1723175441076,-500.0,0.00015678,2]
[334533773,1723175441087,-500.0,0.00015678,2]
[334533774,1723175441097,-500.0,0.00015678,2]
[334533775,1723175441107,-500.0,0.00015678,2]
[334533776,1723175441117,-500.0,0.00015678,2]
[334533777,1723175441128,-500.0,0.00015678,2]
[334533778,1723175441139,-500.0,0.00015678,2]
[334533779,1723175441148,-500.0,0.00015678,2]
[334533780,1723175441158,-500.0,0.00015678,2]
[334533782,1723175441167,-500.0,0.00015678,2]
[334533784,1723175441176,-500.0,0.00015678,2]
[334533786,1723175441186,-500.0,0.00015678,2]
[334533788,1723175441195,-500.0,0.00015678,2]
[334533790,1723175441209,-500.0,0.00015678,2]
[334533792,1723175441219,-500.0,0.00015678,2]
[334533793,1723175441228,-500.0,0.00015678,2]
[334533794,1723175441238,-500.0,0.00015678,2]
[334533795,1723175441248,-500.0,0.00015678,2]
[334533796,1723175441263,-500.0,0.00015678,2]
[334533797,1723175441273,-500.0,0.00015678,2]
[334533798,1723175441284,-500.0,0.00015678,2]
[334533799,1723175441294,-500.0,0.00015678,2]
[334533800,1723175441303,-500.0,0.00015678,2]
[334533801,1723175441314,-500.0,0.00015678,2]
[334533802,1723175441324,-500.0,0.00015678,2]
[334533803,1723175441333,-500.0,0.00015678,2]
[334533804,1723175441343,-500.0,0.00015678,2]
[334533805,1723175441352,-500.0,0.00015678,2]
[334533806,1723175441361,-500.0,0.00015678,2]
[334533807,1723175441371,-500.0,0.00015678,2]
[334533808,1723175441380,-500.0,0.00015678,2]
[334533809,1723175441389,-500.0,0.00015678,2]
[334533810,1723175441399,-500.0,0.00015678,2]
[334533811,1723175441408,-500.0,0.00015678,2]
[334533812,1723175441417,-500.0,0.00015678,2]
[334533813,1723175441426,-500.0,0.00015678,2]
[334533814,1723175441436,-500.0,0.00015678,2]
[334533815,1723175441445,-500.0,0.00015678,2]
[334533816,1723175441455,-500.0,0.00015678,2]
[334533817,1723175441464,-500.0,0.00015678,2]
[334533818,1723175441473,-500.0,0.00015678,2]
[334533819,1723175441483,-500.0,0.00015678,2]
[334533820,1723175441492,-500.0,0.00015678,2]
[334533821,1723175441500,-500.0,0.00015678,2]
[334533822,1723175441510,-233.30019949,0.00015678,2]
[334533823,1723175441519,-500.0,0.00015678,2]
[334533824,1723175441528,-500.0,0.00015678,2]
[334533825,1723175441537,-500.0,0.00015678,2]
[334533826,1723175441546,-500.0,0.00015678,2]
[334533827,1723175441557,-500.0,0.00015678,2]
[334533828,1723175441566,-500.0,0.00015678,2]
[334533829,1723175441575,-500.0,0.00015678,2]
[334533830,1723175441585,-500.0,0.00015678,2]
[334533831,1723175441594,-16480.8444239,0.00015679,2]
[334533832,1723175441603,-80950.1702487,0.00015689,2]
[334533833,1723175441613,-80950.1702487,0.00015698,2]
[334533834,1723175441622,-500.0,0.00015698,2]
[334533835,1723175441631,-250.91510489,0.00015698,2]
[334533836,1723175441640,-654.31015591,0.00015698,2]
[334533837,1723175441649,-654.31015591,0.00015698,2]
[334533838,1723175441659,-654.31015591,0.00015698,2]
[334533839,1723175441669,-251.7331141,0.00015698,2]
[334533840,1723175441678,-654.31015591,0.00015698,2]
[334533841,1723175441687,-654.31015591,0.00015698,2]
[334533842,1723175441696,-654.31015591,0.00015698,2]
[334533843,1723175441705,-654.31015591,0.00015698,2]
[334533844,1723175441715,-654.31015591,0.00015698,2]
[334533845,1723175441725,-654.31015591,0.00015698,2]
[334533846,1723175441735,-654.31015591,0.00015698,2]
[334533847,1723175441744,-654.31015591,0.00015698,2]
[334533848,1723175441757,-654.31015591,0.00015698,2]
[334533849,1723175441767,-654.31015591,0.00015698,2]
[334533850,1723175441776,-654.31015591,0.00015698,2]
[334533851,1723175441785,-654.31015591,0.00015698,2]
[334533852,1723175441794,-654.31015591,0.00015698,2]
[334533853,1723175441803,-80950.1702487,0.00015699,2]
[334533854,1723175441813,-150.112233,0.000157,2]
[334533855,1723175441823,-80950.1702487,0.000157,2]
[334533856,1723175441835,-9648.27796999,0.00015708,2]
[334533857,1723175441846,-1163.53083147,0.00015708,2]
[334533858,1723175441856,-2125.78393313,0.00015708,2]
[334533859,1723175441866,-20771.62269481,0.00015708,2]
[334533860,1723175441876,-2163.84623957,0.00015708,2]
[334533861,1723175441887,-1795.64982845,0.00015708,2]
[334533862,1723175441896,-2140.4177363,0.00015708,2]
[334533863,1723175441906,-3089.42924468,0.00015708,2]
[334533864,1723175441917,-1764.53474525,0.00015708,2]
[334533865,1723175441927,-9114.71769999,0.00015708,2]
[334533866,1723175441938,-1717.1638182,0.00015708,2]
[334533867,1723175441949,-7005.89832707,0.00015708,2]
[334533868,1723175441958,-1383.74801699,0.00015708,2]
[334533869,1723175441967,-1992.83567899,0.00015708,2]
[334533870,1723175441976,-154.79103211,0.00015708,2]
[334533871,1723175441986,-196.58453843,0.00015708,2]
[334533872,1723175441995,-196.58453843,0.00015708,2]
[334533873,1723175442007,-2850.80314621,0.00015708,2]
[334533874,1723175442016,-342.24911954,0.00015708,2]
[334533875,1723175442028,-209.31521257,0.00015708,2]
[334533876,1723175442039,-174.63190084,0.00015708,2]
[334533877,1723175442050,-154.79103211,0.00015708,2]
[334533878,1723175442062,-209.98990113,0.00015708,2]
[334533879,1723175442072,-201.59267893,0.00015708,2]
[334533880,1723175442082,-154.79103211,0.00015708,2]
[334533881,1723175442091,-11407.20810086,0.00015708,2]
[334533882,1723175442100,-42366.16356883,0.00015709,2]
[334533883,1723175442109,-188.34866886,0.0001571,2]
[334533884,1723175442121,-201.59267893,0.0001571,2]
[334533885,1723175442132,-309.55115084,0.0001571,2]
[334533886,1723175442143,-205.31051458,0.0001571,2]
[334533887,1723175442317,-154.79103211,0.0001571,2]
[334533888,1723175442327,-157.05367525,0.0001571,2]
[334533889,1723175442337,-471.11500661,0.0001571,2]
[334533890,1723175442347,-319.90937201,0.0001571,2]
[334533891,1723175442357,-154.79103211,0.0001571,2]
[334533892,1723175442367,-8834.48131506,0.0001571,2]
[334533893,1723175442377,-154.79103211,0.0001571,2]
[334533894,1723175442386,-287.94781809,0.0001571,2]
[334533895,1723175442396,-471.11500661,0.0001571,2]
[334533896,1723175442406,-1042.06398309,0.0001571,2]
[334533897,1723175442415,-154.79103211,0.00015712,2]
[334533898,1723175442425,-154.79103211,0.00015712,2]
[334533899,1723175442435,-686.62940882,0.00015712,2]
[334533900,1723175442445,-686.62940882,0.00015712,2]
[334533901,1723175442457,-16480.8444239,0.00015714,2]
[334533902,1723175442466,-80950.1702487,0.00015734,2]
[334533903,1723175442476,-154.79103211,0.00015744,2]
[334533904,1723175442486,-154.79103211,0.00015744,2]
[334533905,1723175442496,-154.79103211,0.00015744,2]
[334533906,1723175442506,-154.79103211,0.00015744,2]
[334533907,1723175442515,-154.79103211,0.00015744,2]
[334533909,1723175442525,-194.69086779,0.00015744,2]
[334533911,1723175442534,-154.79103211,0.00015744,2]
[334533913,1723175442544,-532.54272678,0.00015746,2]
[334533916,1723175442553,-154.79103211,0.00015746,2]
[334533918,1723175442562,-1020.20294816,0.00015746,2]
[334533920,1723175442571,-403.97923523,0.00015746,2]
[334533922,1723175442580,-183.21593301,0.00015746,2]
[334533924,1723175442590,-253.58130554,0.00015746,2]
[334533926,1723175442599,-1020.20294816,0.00015746,2]
[334533928,1723175442609,-183.21593301,0.00015746,2]
[334533930,1723175442618,-16480.8444239,0.00015749,2]
[334533932,1723175442627,-3152.68493021,0.00015749,2]
[334533934,1723175442637,-554.91044339,0.00015849,2]
[334533935,1723175442647,-151.0,0.00015951,2]
[334533936,1723175442657,-151.0,0.00015951,2]
[334533937,1723175442667,-151.0,0.00015951,2]
[334533938,1723175442677,-151.0,0.00015951,2]
[334533939,1723175442687,-151.0,0.00015951,2]
[334533940,1723175442697,-729.93792517,0.00015967,2]
[334533941,1723175442707,-244.59641755,0.00016,2]
[334533942,1723175442716,-151.0,0.00016094,2]
[334533943,1723175442727,-151.0,0.00016094,2]
[334533944,1723175442737,-663.461342,0.00016094,2]
[334533945,1723175442748,-663.461342,0.00016094,2]
[334533946,1723175442758,-151.0,0.00016094,2]
[334533947,1723175442768,-151.0,0.00016094,2]
[334533948,1723175442777,-154.79103211,0.0001611,2]
[334533949,1723175442786,-154.79103211,0.0001611,2]
[334533951,1723175442795,-52781.89696244,0.00016347,2]
[334533952,1723175442805,-150.112233,0.000164,2]
[334533954,1723175442815,-500.0,0.00016438,2]
[334533956,1723175442825,-277.26634811,0.00016532,2]
[334533957,1723175442837,-259.97599788,0.00016532,2]
[334533959,1723175442847,-151.0,0.00016743,2]
[334533961,1723175442856,-151.0,0.00016743,2]
[334533963,1723175442866,-151.0,0.00016743,2]
[334533964,1723175442875,-151.0,0.00016743,2]
[334533965,1723175442885,-151.0,0.00016743,2]
[334533966,1723175442894,-151.0,0.00016743,2]
[334533967,1723175442904,-309.54208961,0.00017,2]
[334533968,1723175442915,-2279.60004077,0.00017019,3]
[334533969,1723175442926,-202.135724,0.00017019,2]
[334533970,1723175442935,-202.135724,0.00017019,2]
[334533971,1723175442946,-420.0,0.0001707,2]
[334533972,1723175442958,-150.112233,0.000171,2]
[334533973,1723175442968,-200.0,0.000171,2]
[334533974,1723175442977,-200.0,0.000171,2]
[334533975,1723175442987,-420.0,0.00017168,2]
[334533976,1723175442996,-419.7083463,0.000172,2]
[334533977,1723175443006,-419.70834629,0.000172,2]
[334533978,1723175443016,-419.70834629,0.000172,2]
[334533979,1723175443026,-247.299032,0.0001725,2]
[334533980,1723175443036,-247.299032,0.0001725,2]
[334533981,1723175443045,-151.0,0.0001725,2]
[334533982,1723175443055,-151.0,0.00017379,2]
[334533983,1723175443066,-845.975809,0.00017379,2]
[334533984,1723175443076,-845.975809,0.00017379,2]
[334533985,1723175443085,-1208.766106,0.00017379,2]
[334533986,1723175443095,-1208.766106,0.00017379,2]
[334533987,1723175443105,-583.401317,0.00017379,2]
[334533988,1723175443115,-583.401317,0.00017379,2]
[334533989,1723175443124,-2279.60004077,0.00017379,3]
[334533990,1723175443134,-475.399349,0.00017389,2]
[334533991,1723175443145,-178.762337,0.00017389,2]
[334533992,1723175443155,-475.399349,0.00017389,2]
[334533993,1723175443167,-178.762337,0.00017389,2]
[334533994,1723175443179,-151.0,0.00017389,2]
[334533995,1723175443189,-151.0,0.00017389,2]
[334533996,1723175443199,-1005.973191,0.00017389,2]
[334533997,1723175443208,-1005.973191,0.00017389,2]
[334533998,1723175443218,-151.0,0.00017389,2]
[334533999,1723175443229,-151.0,0.00017389,2]
[334534000,1723175443240,-155.52327347,0.00017555,2]
[334534001,1723175443250,-240.94479863,0.00017555,2]
[334534002,1723175443259,-240.94479863,0.00017555,2]
[334534003,1723175443270,-150.112233,0.000176,2]
[334534005,1723175443279,-150.112233,0.000177,2]
[334534007,1723175443289,-2005.0,0.00017999,10]
[334534009,1723175443298,-154.92177541,0.00018,2]
[334534011,1723175443309,-12019.37325433,0.00018119,2]
[334534013,1723175443318,-151.0,0.00018131,2]
[334534015,1723175443328,-151.0,0.00018131,2]
[334534017,1723175443337,-151.0,0.00018131,2]
[334534019,1723175443346,-584.254296,0.00018131,2]
[334534021,1723175443356,-584.254296,0.00018131,2]
[334534023,1723175443366,-151.0,0.00018131,2]
[334534025,1723175443375,-150.112233,0.000184,2]
[334534027,1723175443386,-400.0,0.0001847,2]
[334534028,1723175443395,-400.0,0.0001847,2]
[334534030,1723175443405,-150.112233,0.000185,2]
[334534032,1723175443414,-587.0,0.00018671,2]
[334534034,1723175443425,-1611.61280657,0.00018679,2]
[334534036,1723175443438,-250.47658072,0.00018679,2]
[334534038,1723175443448,-1500.0,0.00018696,2]
[334534041,1723175443458,-932.72964545,0.0001872,2]
[334534044,1723175443468,-156.82503371,0.00018786,2]
[334534046,1723175443477,-154.79103211,0.00018799,2]
[334534048,1723175443487,-154.79103211,0.00018799,2]
[334534050,1723175443497,-154.79103211,0.00018799,2]
[334534052,1723175443506,-587.0,0.00018884,2]
[334534054,1723175443516,-727.95598898,0.00018899,2]
[334534056,1723175443525,-413.18177562,0.00018899,2]
[334534058,1723175443536,-2005.0,0.0001892,10]
[334534059,1723175443546,-2005.0,0.0001892,10]
[334534061,1723175443557,-2015.58357985,0.0001892,10]
[334534064,1723175443568,-414.16414531,0.0001895,2]
[334534065,1723175443577,-3152.68493021,0.00018977,2]
[334534067,1723175443586,-150.112233,0.00019,2]
[334534069,1723175443595,-250.0,0.00019041,2]
[334534071,1723175443605,-2000.0,0.00019166,2]
[334534073,1723175443614,-1285.11282224,0.00019166,2]
[334534075,1723175443623,-166.733183,0.00019178,2]
[334534077,1723175443632,-150.112233,0.000195,2]
[334534079,1723175443642,-154.9926017,0.00019547,2]
[334534081,1723175443651,-150.112233,0.000197,2]
[334534082,1723175443660,-200.0,0.00019973,2]
[334534084,1723175443669,-200.0,0.00019973,2]
[334534086,1723175443678,-200.0,0.00019973,2]
[334534088,1723175443688,-1444.60456197,0.0002,2]
[334534090,1723175443698,-10493.07332189,0.0002,2]
[334534092,1723175443707,-1364.15976013,0.0002,2]
[334534094,1723175443716,-1626.92608275,0.0002,2]
[334534096,1723175443725,-154.79103211,0.0002,2]
[334534098,1723175443735,-158.13903548,0.0002,2]
[334534100,1723175443744,-294.28393168,0.0002,2]
[334534102,1723175443756,-255.7915999,0.0002,2]
[334534104,1723175443767,-428.53911302,0.0002,2]
[334534106,1723175443778,-156.45284227,0.0002,2]
[334534108,1723175443787,-121582.34440862,0.0002,2]
[334534110,1723175443797,-151.0,0.0002,2]
[334534111,1723175443806,-151.0,0.0002,2]
[334534113,1723175443815,-152.734404,0.0002,2]
[334534115,1723175443824,-247.299032,0.0002,2]
[334534117,1723175443835,-247.299032,0.0002,2]
[334534119,1723175443845,-151.0,0.0002,2]
[334534121,1723175443854,-151.0,0.0002,2]
[334534123,1723175443864,-208.82481,0.0002,2]
[334534124,1723175443874,-169.087658,0.0002,2]
[334534126,1723175443883,-151.0,0.0002,2]
[334534128,1723175443892,-151.0,0.0002,2]
[334534130,1723175443901,-151.0,0.0002,2]
[334534132,1723175443912,-151.0,0.0002,2]
[334534134,1723175443922,-151.0,0.0002,2]
[334534136,1723175443931,-151.0,0.0002,2]
[334534138,1723175443942,-151.0,0.0002,2]
[334534140,1723175443950,-151.0,0.0002,2]
[334534142,1723175443959,-151.0,0.0002,2]
[334534144,1723175443968,-663.461342,0.0002,2]
[334534146,1723175443977,-663.461342,0.0002,2]
[334534148,1723175443986,-151.0,0.0002,2]
[334534150,1723175443995,-151.0,0.0002,2]
[334534151,1723175444009,-154.693268,0.0002,2]
[334534152,1723175444019,-151.0,0.0002,2]
[334534153,1723175444028,-151.0,0.0002,2]
[334534154,1723175444037,-584.254296,0.0002,2]
[334534155,1723175444046,-584.254296,0.0002,2]
[334534156,1723175444056,-151.0,0.0002,2]
[334534157,1723175444065,-475.399349,0.0002,2]
[334534158,1723175444074,-178.762337,0.0002,2]
[334534159,1723175444083,-475.399349,0.0002,2]
[334534160,1723175444092,-178.762337,0.0002,2]
[334534161,1723175444102,-151.0,0.0002,2]
[334534162,1723175444111,-151.0,0.0002,2]
[334534163,1723175444121,-1005.973191,0.0002,2]
[334534164,1723175444129,-1005.973191,0.0002,2]
[334534165,1723175444139,-151.0,0.0002,2]
[334534166,1723175444148,-151.0,0.0002,2]
[334534167,1723175444158,-151.0,0.0002,2]
[334534168,1723175444167,-845.975809,0.0002,2]
[334534169,1723175444176,-845.975809,0.0002,2]
[334534170,1723175444185,-1208.766106,0.0002,2]
[334534172,1723175444203,-1208.766106,0.0002,2]
[334534173,1723175444212,-583.401317,0.0002,2]
[334534175,1723175444222,-202.135724,0.0002,2]
[334534177,1723175444231,-583.401317,0.0002,2]
[334534178,1723175444240,-202.135724,0.0002,2]
[334534180,1723175444249,-150.112233,0.000204,2]
[334534182,1723175444260,-150.112233,0.000204,4]
[334534184,1723175444269,-823.0,0.00020422,2]
[334534186,1723175444278,-600.0,0.00020473,2]
[334534188,1723175444287,-12019.37325433,0.0002066,2]
[334534190,1723175444296,-823.0,0.00020773,2]
[334534192,1723175444306,-297.15758286,0.00021,2]
[334534194,1723175444315,-154.82306886,0.00021,2]
[334534196,1723175444325,-150.112233,0.00021,5]
[334534198,1723175444334,-522.63402036,0.00021011,2]
[334534200,1723175444344,-154.79103211,0.00021048,2]
[334534202,1723175444354,-400.0,0.00021342,2]
[334534204,1723175444363,-303.8798826,0.00021342,2]
[334534206,1723175444372,-400.0,0.00021342,2]
[334534208,1723175444382,-150.112233,0.000214,2]
[334534210,1723175444391,-301.1738371,0.00021542,2]
[334534212,1723175444401,-1567.65921,0.00021601,2]
[334534214,1723175444410,-504.22103723,0.00021658,2]
[334534215,1723175444420,-150.112233,0.000217,2]
[334534217,1723175444429,-489.48912933,0.00021805,2]
[334534219,1723175444439,-500.0,0.00021917,4]
[334534221,1723175444448,-500.0,0.00021917,4]
[334534223,1723175444457,-516.97099816,0.00021917,4]
[334534225,1723175444467,-240.55,0.00022,7]
[334534228,1723175444477,-7930.97,0.00022,14]
[334534230,1723175444487,-173.0,0.00022,2]
[334534232,1723175444496,-3152.68493021,0.00022205,2]
[334534233,1723175444505,-150.112233,0.000223,3]
[334534235,1723175444515,-568.7,0.000223,14]
[334534237,1723175444524,-5268.86537018,0.00022318,2]
[334534239,1723175444534,-1152.0,0.00022337,2]
[334534241,1723175444543,-5268.86537018,0.00022508,2]
[334534243,1723175444553,-153.0,0.00022536,2]
[334534245,1723175444562,-153.0,0.00022536,2]
[334534247,1723175444571,-153.0,0.00022536,2]
[334534249,1723175444581,-153.0,0.00022536,2]
[334534250,1723175444590,-153.0,0.00022536,2]
[334534252,1723175444599,-641.40525198,0.0002268,2]
[334534254,1723175444609,-5268.86537018,0.00022781,2]
[334534256,1723175444618,-256.51833903,0.00022814,2]
[334534258,1723175444627,-800.0,0.00022814,2]
[334534260,1723175444637,-1152.0,0.0002285,2]
[334534262,1723175444647,-1502.94121183,0.00022966,2]
[334534264,1723175444657,-173.0,0.00023014,2]
[334534266,1723175444667,-12019.37325433,0.000232,2]
[334534268,1723175444677,-150.112233,0.000232,3]
[334534270,1723175444689,-5268.86537018,0.00023241,2]
[334534272,1723175444698,-600.0,0.00023346,2]
[334534274,1723175444708,-600.0,0.00023346,2]
[334534276,1723175444718,-5268.86537018,0.00023514,2]
[334534278,1723175444728,-293.2419605,0.00023562,2]
[334534280,1723175444739,-267.747436,0.00023562,2]
[334534281,1723175444748,-267.747436,0.00023562,2]
[334534283,1723175444758,-267.747436,0.00023562,2]
[334534285,1723175444768,-271.3686162,0.00023562,2]
[334534287,1723175444778,-153.0,0.0002359,2]
[334534289,1723175444787,-153.0,0.0002359,2]
[334534291,1723175444796,-153.0,0.0002359,2]
[334534293,1723175444805,-153.0,0.0002359,2]
[334534295,1723175444816,-153.0,0.0002359,2]
[334534297,1723175444826,-153.0,0.0002359,2]
[334534299,1723175444841,-153.0,0.0002359,2]
[334534301,1723175444852,-153.0,0.0002359,2]
[334534304,1723175444863,-153.0,0.0002359,2]
[334534306,1723175444873,-153.0,0.0002359,2]
[334534307,1723175444883,-153.0,0.0002359,2]
[334534309,1723175444893,-153.0,0.0002359,2]
[334534312,1723175444903,-153.0,0.0002359,2]
[334534313,1723175444913,-160.0,0.0002361,3]
[334534316,1723175444924,-5268.86537018,0.00023807,2]
[334534317,1723175444934,-621.0702626,0.00023814,2]
[334534320,1723175444947,-160.0,0.00023948,4]
[334534322,1723175444958,-4351.71715984,0.00024,30]
[334534324,1723175444968,-19576.08506356,0.00024,10]
[334534326,1723175444977,-5268.86537018,0.00024012,2]
[334534328,1723175444988,-306.0,0.00024055,2]
[334534330,1723175444999,-153.0,0.00024082,2]
[334534332,1723175445009,-306.0,0.0002411,2]
[334534334,1723175445019,-5268.86537018,0.00024111,2]
[334534336,1723175445030,-150.112233,0.000242,4]
[334534338,1723175445040,-160.0,0.00024287,5]
[334534340,1723175445051,-153.0,0.00024329,2]
[334534342,1723175445060,-153.0,0.00024384,2]
[334534344,1723175445071,-153.0,0.00024384,2]
[334534346,1723175445080,-153.0,0.00024384,2]
[334534348,1723175445091,-153.0,0.00024384,2]
[334534350,1723175445100,-153.0,0.00024384,2]
[334534352,1723175445111,-153.0,0.00024384,2]
[334534355,1723175445123,-588.994205,0.00024384,2]
[334534357,1723175445133,-294.5666805,0.00024384,2]